bitfinex/quotes_SOLUSD_20251124
["timestamp","ask_amount","ask_price","bid_price","bid_amount"]
[1764002351638,8.47843412,133.91,133.85,0.14216157]
[1764002351957,8.47843412,133.91,133.86,9.78882769]
[1764002352829,0.71,133.91,133.86,10.50882769]
[1764002353231,8.47843412,133.94,133.87,8.63059569]
[1764002353534,8.47843412,133.93,133.87,7.61207503]
[1764002353836,7.76843412,133.92,133.87,7.6120605]
[1764002354036,0.71,133.93,133.88,9.78882769]
[1764002354232,0.71,133.93,133.88,10.50882769]
[1764002354632,8.47843412,133.93,133.88,9.78882769]
[1764002354833,8.47843412,133.93,133.87,0.14216157]
[1764002355064,7.76843412,133.91,133.86,7.47012391]
[1764002355439,0.71,133.9,133.86,7.47012391]
[1764002356441,8.47843412,133.92,133.86,8.19012391]
[1764002357139,0.71,133.92,133.86,8.19012391]
[1764002357338,5.50216156,133.99,133.85,17.55726181]
[1764002357339,8.47843412,133.91,133.85,9.78882769]
[1764002357647,7.76843412,133.88,133.82,9.78882769]
[1764002357852,7.76843412,133.85,133.79,7.76843412]
[1764002358040,7.76843412,133.85,133.79,7.47431865]
[1764002358242,8.47843412,133.85,133.8,9.78882769]
[1764002358471,8.47843412,133.87,133.8,18.27726181]
[1764002358675,7.76843412,133.86,133.8,10.50882769]
[1764002358975,8.47843412,133.86,133.8,10.50882769]
[1764002359541,0.71,133.86,133.81,7.47328301]
[1764002359864,8.47843412,133.86,133.8,17.98262191]
[1764002360479,0.71,133.85,133.8,17.26262191]
[1764002360980,8.47843412,133.85,133.8,9.78882769]
[1764002361379,0.71,133.84,133.8,9.78882769]
[1764002361676,7.76843412,133.85,133.8,9.78882769]
[1764002361677,8.47843412,133.85,133.8,17.98255556]
[1764002362093,8.47843412,133.84,133.78,15.38550248]
[1764002362381,24.07729812,133.88,133.82,9.78882769]
[1764002362680,3.50216157,133.93,133.84,9.78882769]
[1764002362681,8.43843412,133.89,133.84,9.78882769]
[1764002362867,0.67,133.88,133.84,9.78882769]
[1764002363771,0.67,133.91,133.86,17.55726181]
[1764002364091,0.67,133.91,133.85,0.7]
[1764002364092,7.76843412,133.89,133.84,9.78882769]
[1764002364452,0.1,134.0,133.84,9.78882769]
[1764002364679,0.67,133.93,133.87,7.76843412]
[1764002364876,0.67,133.93,133.88,7.76843412]
[1764002365071,0.67,133.93,133.85,0.7]
[1764002365072,7.76843412,133.91,133.84,16.45102557]
[1764002365299,7.76843412,133.91,133.85,17.55726181]
[1764002365460,8.43843412,133.9,133.85,9.78882769]
[1764002365962,0.67,133.92,133.87,7.76843412]
[1764002366281,8.43843412,133.92,133.86,8.46843412]
[1764002368083,0.67,133.91,133.86,7.76843412]
[1764002368786,0.67,133.99,133.9,7.76843412]
[1764002368956,0.67,133.99,133.88,26.09769169]
[1764002368957,0.1,134.0,133.97,7.76843412]
[1764002369464,0.1,134.0,133.95,13.14882769]
[1764002369465,0.1,134.0,133.95,17.55726181]
[1764002369661,0.1,134.0,133.96,7.76843412]
[1764002369881,0.77,134.0,133.95,25.7226311]
[1764002370186,0.1,134.0,133.97,7.76843412]
[1764002370372,0.1,134.0,133.96,7.76843412]
[1764002370763,0.1,134.0,133.96,0.7]
[1764002370955,0.1,134.0,133.96,8.46843412]
[1764002371884,0.1,134.0,133.96,7.76843412]
[1764002371885,0.77,134.0,133.96,7.76843412]
[1764002372757,0.77,134.0,133.95,17.95429821]
[1764002372983,0.77,134.0,133.96,7.76843412]
[1764002373368,0.77,134.0,133.95,17.95429821]
[1764002373570,0.77,134.0,133.96,7.76843412]
[1764002374888,0.77,134.0,133.96,15.23325575]
[1764002375180,0.77,134.0,133.96,7.76843412]
[1764002375590,0.77,134.0,133.95,9.78882769]
[1764002375591,8.53843412,134.0,133.95,9.78882769]
[1764002375887,0.67,133.99,133.95,17.55726181]
[1764002376091,0.67,133.99,133.95,9.78882769]
[1764002376294,0.67,133.99,133.95,17.55726181]
[1764002377581,0.67,133.99,133.95,9.78882769]
[1764002378701,0.67,133.99,133.95,17.55726181]
[1764002379203,0.1,134.0,133.96,8.46843412]
[1764002379381,0.1,134.0,133.97,8.46843412]
[1764002379784,0.1,134.06,133.97,8.46843412]
[1764002379785,0.1,134.06,134.0,9.78882769]
[1764002379996,0.1,134.06,134.03,15.22920243]
[1764002380503,0.1,134.06,134.01,22.85704176]
[1764002380504,8.53843412,134.06,134.01,3.36]
[1764002380676,0.77,134.06,133.99,0.7]
[1764002380873,8.43843412,134.05,134.0,3.36]
[1764002381077,8.43843412,134.05,133.99,7.76843412]
[1764002381273,0.1,134.06,133.98,9.78882769]
[1764002381274,7.76843412,134.03,133.98,9.78882769]
[1764002381478,0.67,134.02,133.98,9.78882769]
[1764002382083,0.67,134.02,133.98,17.55726181]
[1764002382285,8.43843412,134.04,133.98,18.25726181]
[1764002382686,8.43843412,134.04,133.99,7.76843412]
[1764002382895,8.43843412,134.04,133.98,18.25726181]
[1764002383088,7.76843412,134.03,133.98,10.48882769]
[1764002383292,7.76843412,134.03,133.98,18.25726181]
[1764002383595,8.43843412,134.03,133.98,18.25726181]
[1764002383782,0.67,134.02,133.98,18.25726181]
[1764002383982,8.43843412,134.03,133.98,18.25726181]
[1764002384383,0.67,134.03,133.99,7.76843412]
[1764002384979,0.67,134.03,133.95,0.14216157]
[1764002384980,8.43843412,134.03,133.95,0.84216157]
[1764002385180,7.76843412,134.02,133.97,7.76843412]
[1764002385401,8.43843412,134.02,133.97,7.76843412]
[1764002385585,0.67,134.01,133.97,7.76843412]
[1764002385788,7.76843412,133.99,133.92,0.7]
[1764002385997,7.76843412,133.95,133.86,26.14533193]
[1764002386302,7.76843412,133.98,133.92,7.76843412]
[1764002386601,8.43843412,133.97,133.92,7.76843412]
[1764002386809,0.67,133.96,133.92,7.76843412]
[1764002387107,0.67,134.0,133.93,0.7]
[1764002387407,8.43843412,134.0,133.95,7.76843412]
[1764002387788,0.69,133.99,133.95,7.76843412]
[1764002387978,0.69,133.99,133.96,7.76843412]
[1764002388795,0.69,133.99,133.94,17.97461844]
[1764002389110,0.69,133.99,133.95,7.76843412]
[1764002389410,0.69,133.99,133.94,17.55726181]
[1764002389614,7.76843412,133.96,133.91,9.78882769]
[1764002390108,0.69,133.95,133.91,17.55726181]
[1764002390292,0.69,133.95,133.91,25.02495614]
[1764002390493,0.69,133.95,133.91,17.55726181]
[1764002391015,0.69,133.98,133.94,7.76843412]
[1764002391216,0.69,133.98,133.95,7.76843412]
[1764002391621,8.45843412,134.0,133.95,7.76843412]
[1764002391807,11.12843412,134.01,133.95,7.76843412]
[1764002392128,0.69,134.0,133.95,7.76843412]
[1764002392623,0.69,134.0,133.95,12.12827213]
[1764002392801,15.48827213,134.01,133.96,12.12827213]
[1764002393004,15.48827213,134.01,133.96,12.81827213]
[1764002393347,4.03,134.01,133.97,21.91709982]
[1764002393536,0.67,134.01,133.97,9.78882769]
[1764002393704,0.67,134.01,133.96,12.81827213]
[1764002393705,12.79827213,134.0,133.95,15.48827213]
[1764002394010,12.12827213,133.99,133.95,9.78882769]
[1764002394201,0.67,134.0,133.95,22.60709982]
[1764002394813,0.67,134.0,133.95,21.91709982]
[1764002395004,0.67,134.0,133.95,22.60709982]
[1764002395426,0.67,134.0,133.96,12.12827213]
[1764002395606,12.79827213,134.02,133.96,12.81827213]
[1764002395801,0.67,134.01,133.96,12.81827213]
[1764002396026,12.79827213,134.01,133.96,12.81827213]
[1764002396226,0.67,134.01,133.97,12.12827213]
[1764002396421,0.67,134.01,133.96,20.28316884]
[1764002397218,12.79827213,134.01,133.96,12.81827213]
[1764002398907,12.79827213,134.04,133.99,12.12827213]
[1764002399108,12.79827213,134.04,133.98,12.12827213]
[1764002399431,0.67,134.03,133.98,12.12827213]
[1764002399634,12.79827213,134.03,133.98,12.12827213]
[1764002400005,0.67,134.02,133.98,12.12827213]
[1764002400207,16.15827213,134.05,134.0,12.12827213]
[1764002400406,16.408864,134.06,134.02,12.12827213]
[1764002400407,0.1,134.06,134.02,12.12827213]
[1764002400807,12.12827213,134.05,133.99,12.12827213]
[1764002401009,12.12827213,134.05,134.0,9.78882769]
[1764002401219,12.12827213,134.01,133.93,0.69]
[1764002401549,12.12827213,134.0,133.96,9.78882769]
[1764002401749,12.12827213,134.01,133.96,21.91709982]
[1764002401959,12.12827213,134.02,133.97,12.12827213]
[1764002402267,0.67,134.01,133.97,12.12827213]
[1764002402414,12.79827213,134.01,133.96,25.27709982]
[1764002402739,0.67,134.01,133.94,12.12827213]
[1764002402927,12.12827213,133.99,133.94,12.12827213]
[1764002403134,12.79827213,134.0,133.94,12.12827213]
[1764002403330,12.12827213,133.98,133.93,12.12827213]
[1764002403559,12.12827213,133.97,133.91,25.27709982]
[1764002403740,0.67,133.97,133.92,12.12827213]
[1764002404240,0.67,133.97,133.92,12.81827213]
[1764002404748,12.79827213,133.97,133.92,12.81827213]
[1764002404927,0.67,133.97,133.93,12.12827213]
[1764002405127,0.67,133.97,133.93,19.59471581]
[1764002405444,0.67,133.97,133.93,12.81827213]
[1764002405641,0.67,133.97,133.93,12.12827213]
[1764002405941,0.1,134.06,133.97,9.78882769]
[1764002406166,0.67,134.04,133.99,12.12827213]
[1764002406364,0.67,134.04,134.0,21.91709982]
[1764002406542,0.1,134.06,134.01,12.12827213]
[1764002406744,0.1,134.06,134.03,12.12827213]
[1764002406745,0.77,134.06,134.03,12.12827213]
[1764002406931,0.1,134.06,134.04,12.12827213]
[1764002407131,0.1,134.06,134.05,21.91709982]
[1764002409337,0.1,134.06,134.05,30.20916441]
[1764002409553,0.77,134.14,134.1,12.12827213]
[1764002409789,0.77,134.14,134.12,12.12827213]
[1764002409790,0.1,134.14,134.12,12.12827213]
[1764002410162,0.1,134.14,134.11,0.69]
[1764002410367,0.1,134.14,134.11,12.12827213]
[1764002410554,0.1,134.14,134.1,22.05926139]
[1764002410862,0.1,134.14,134.12,12.12827213]
[1764002411238,0.1,134.14,134.12,0.14216157]
[1764002411441,0.1,134.14,134.13,21.91709982]
[1764002411748,0.1,134.14,134.13,22.05926139]
[1764002412341,0.1,134.14,134.13,22.74926139]
[1764002412575,0.1,134.14,134.13,20.55926139]
[1764002413065,0.1,134.14,134.13,8.43098926]
[1764002413362,0.1,134.14,134.13,82.06471505]
[1764002413956,0.1,134.14,134.13,16.57644292]
[1764002414154,0.1,134.14,134.13,28.70471505]
[1764002414469,0.1,134.14,134.11,68.64017242]
[1764002414470,0.1,134.14,134.11,21.91709982]
[1764002414701,0.1,134.14,134.13,12.12827213]
[1764002414975,0.1,134.17,134.16,22.05926139]
[1764002415141,0.1,134.17,134.16,32.87304791]
[1764002415348,0.1,134.17,134.16,33.56304791]
[1764002415949,0.1,134.17,134.16,83.56304791]
[1764002416155,0.1,134.17,134.16,33.56304791]
[1764002418351,0.1,134.18,134.16,33.56304791]
[1764002418352,0.1,134.18,134.17,59.93098926]
[1764002418562,0.1,134.18,134.17,76.92985326]
[1764002418773,0.1,134.18,134.17,13.29098926]
[1764002418975,0.1,134.18,134.17,25.41926139]
[1764002419184,0.1,134.18,134.17,83.56249236]
[1764002419481,12.12827213,134.24,134.17,88.90458053]
[1764002419670,12.79827213,134.24,134.2,9.78882769]
[1764002419853,12.79827213,134.24,134.2,13.14882769]
[1764002420060,12.12827213,134.25,134.2,25.27709982]
[1764002420254,12.79827213,134.23,134.19,12.12827213]
[1764002420683,0.67,134.22,134.18,25.27709982]
[1764002420858,0.67,134.22,134.18,9.78882769]
[1764002421058,0.67,134.22,134.19,21.91709982]
[1764002421262,0.67,134.24,134.2,12.12827213]
[1764002421488,0.67,134.23,134.19,21.91709982]
[1764002423162,12.12827213,134.21,134.14,9.78882769]
[1764002423359,12.80827213,134.2,134.17,9.78882769]
[1764002423659,12.80827213,134.2,134.16,9.78882769]
[1764002423860,0.68,134.19,134.16,21.91709982]
[1764002424094,12.80827213,134.19,134.15,9.78882769]
[1764002424296,12.80827213,134.19,134.15,21.91709982]
[1764002424470,0.68,134.18,134.15,21.91709982]
[1764002424667,0.68,134.18,134.15,9.78882769]
[1764002424988,0.68,134.18,134.15,21.91709982]
[1764002425186,12.80827213,134.2,134.15,21.91709982]
[1764002425377,12.80827213,134.19,134.15,9.78882769]
[1764002425574,12.80827213,134.19,134.13,17.24391841]
[1764002425775,0.68,134.18,134.09,0.63]
[1764002426007,12.80827213,134.18,134.13,21.91709982]
[1764002426166,0.68,134.18,134.13,21.91709982]
[1764002426367,0.68,134.18,134.15,12.12827213]
[1764002426762,12.80827213,134.18,134.14,9.78882769]
[1764002426967,0.68,134.18,134.14,21.91709982]
[1764002427195,0.68,134.17,134.14,12.12827213]
[1764002427393,0.68,134.18,134.14,12.12827213]
[1764002427573,12.12827213,134.19,134.14,12.12827213]
[1764002427574,0.68,134.17,134.14,12.12827213]
[1764002429301,0.68,134.17,134.13,25.27709982]
[1764002429680,0.68,134.17,134.14,12.12827213]
[1764002430189,16.308864,134.23,134.14,15.48827213]
[1764002430190,12.80827213,134.19,134.14,15.48827213]
[1764002430394,12.12827213,134.19,134.14,15.48827213]
[1764002430601,0.68,134.18,134.14,15.48827213]
[1764002430788,0.68,134.21,134.17,12.12827213]
[1764002430989,0.68,134.21,134.17,15.48827213]
[1764002431194,12.12827213,134.2,134.15,12.12827213]
[1764002431377,12.12827213,134.18,134.14,15.48827213]
[1764002431703,12.12827213,134.19,134.14,15.48827213]
[1764002432004,12.12827213,134.19,134.14,22.94316018]
[1764002432179,0.68,134.18,134.14,22.94316018]
[1764002432516,0.68,134.18,134.14,12.12827213]
[1764002433004,0.68,134.18,134.14,19.58315125]
[1764002433597,0.68,134.18,134.14,12.12827213]
[1764002433907,0.68,134.18,134.14,19.58315426]
[1764002434097,0.68,134.18,134.15,12.12827213]
[1764002434409,0.68,134.18,134.14,19.58315426]
[1764002434612,12.12827213,134.16,134.09,0.63]
[1764002434903,12.12827213,134.14,134.09,12.12827213]
[1764002435200,12.80827213,134.17,134.12,12.12827213]
[1764002435402,12.12827213,134.15,134.1,9.78882769]
[1764002435617,12.12827213,134.15,134.1,12.12827213]
[1764002435904,0.68,134.14,134.1,12.12827213]
[1764002436079,0.68,134.14,134.09,21.91709982]
[1764002436282,12.12827213,134.12,134.07,12.12827213]
[1764002436689,12.80827213,134.11,134.04,11.45039241]
[1764002437011,12.12827213,134.09,134.04,15.48827213]
[1764002437187,0.68,134.08,134.05,12.12827213]
[1764002437906,0.68,134.08,134.03,20.60971832]
[1764002438111,0.68,134.08,134.05,12.12827213]
[1764002438485,0.68,134.08,134.06,12.12827213]
[1764002438883,1.99999999,134.18,134.03,39.89225879]
[1764002438884,0.68,134.12,134.07,12.12827213]
[1764002439085,166.39999999,134.21,134.1,21.91709982]
[1764002439086,3.36,134.15,134.1,21.91709982]
[1764002439292,4.04,134.15,134.12,12.12827213]
[1764002440115,0.68,134.17,134.13,12.12827213]
[1764002440414,0.68,134.16,134.12,7.45600125]
[1764002440583,0.68,134.16,134.13,12.12827213]
[1764002440781,0.68,134.16,134.14,12.12827213]
[1764002440986,0.68,134.18,134.14,12.12827213]
[1764002441700,31.79713613,134.2,134.17,12.12827213]
[1764002441701,0.68,134.2,134.17,12.12827213]
[1764002443318,12.80827213,134.2,134.15,12.12827213]
[1764002443609,0.68,134.2,134.16,12.12827213]
[1764002444714,12.80827213,134.2,134.15,12.12827213]
[1764002445011,12.12827213,134.19,134.15,12.12827213]
[1764002445189,12.12827213,134.19,134.13,12.12827213]
[1764002445190,12.12827213,134.18,134.13,12.12827213]
[1764002445394,12.12827213,134.17,134.13,12.12827213]
[1764002445613,12.80827213,134.17,134.12,12.12827213]
[1764002445908,12.80827213,134.16,134.12,12.12827213]
[1764002446081,0.68,134.16,134.12,12.12827213]
[1764002446283,12.12827213,134.17,134.12,12.12827213]
[1764002446284,0.68,134.15,134.12,12.12827213]
[1764002446508,0.68,134.15,134.13,12.12827213]
[1764002447506,0.68,134.15,134.12,12.12827213]
[1764002447714,0.67,134.18,134.14,12.12827213]
[1764002447891,12.79827213,134.18,134.13,12.12827213]
[1764002448290,0.67,134.17,134.13,12.12827213]
[1764002448498,12.79827213,134.17,134.12,12.12827213]
[1764002448697,12.79827213,134.17,134.11,17.24518368]
[1764002449018,0.67,134.16,134.13,12.12827213]
[1764002450196,0.67,134.16,134.11,9.78882769]
[1764002450531,12.79827213,134.16,134.12,12.12827213]
[1764002450810,0.67,134.16,134.12,12.12827213]
[1764002451128,0.67,134.15,134.12,12.12827213]
[1764002451338,0.67,134.15,134.13,12.12827213]
[1764002451535,0.67,134.17,134.13,12.12827213]
[1764002451842,12.79827213,134.17,134.12,12.12827213]
[1764002452012,12.12827213,134.16,134.12,12.12827213]
[1764002452211,12.79827213,134.16,134.11,12.12827213]
[1764002452417,12.79827213,134.15,134.1,12.12827213]
[1764002452621,12.79827213,134.15,134.04,0.63]
[1764002452622,12.12827213,134.12,134.04,0.63]
[1764002452836,12.12827213,134.1,134.05,12.12827213]
[1764002453245,0.7,134.09,134.05,12.12827213]
[1764002453707,0.7,134.09,134.06,12.12827213]
[1764002454630,0.7,134.09,134.06,7.7284767]
[1764002456723,0.7,134.13,134.08,7.7284767]
[1764002456922,7.7284767,134.1,134.05,7.7284767]
[1764002457143,7.7284767,134.11,134.03,8.09080833]
[1764002457346,0.7,134.12,134.09,7.7284767]
[1764002457740,0.7,134.12,134.08,7.7284767]
[1764002459048,8.4284767,134.12,134.07,7.7284767]
[1764002459433,0.7,134.11,134.07,7.7284767]
[1764002459735,7.7284767,134.1,134.06,15.18775806]
[1764002460049,7.7284767,134.1,134.06,7.7284767]
[1764002460229,0.7,134.1,134.06,15.18767655]
[1764002461044,7.7284767,134.07,134.0,0.2]
[1764002461260,7.7284767,134.01,134.0,0.2]
[1764002461464,8.4284767,134.01,134.0,0.2]
[1764002461773,8.4284767,134.01,133.95,0.2]
[1764002462068,7.7284767,133.97,133.95,0.2]
[1764002462270,0.7,134.0,133.95,0.2]
[1764002462555,7.7284767,134.02,133.98,7.7284767]
[1764002462769,0.7,134.01,133.97,17.51730439]
[1764002462946,7.7284767,134.0,133.97,9.78882769]
[1764002463148,8.4284767,134.01,133.97,17.51730439]
[1764002463354,7.7284767,134.01,133.97,17.51730439]
[1764002463533,17.008864,134.05,134.0,7.7284767]
[1764002463873,7.7284767,134.04,133.99,17.51730439]
[1764002464034,7.7284767,134.05,134.0,0.14216157]
[1764002464234,7.7284767,134.06,134.01,17.51730439]
[1764002464463,11.7884767,134.07,134.02,7.7284767]
[1764002464641,0.7,134.06,134.02,7.7284767]
[1764002465067,7.7284767,134.04,133.98,17.39478982]
[1764002465250,7.7284767,134.01,133.98,9.78882769]
[1764002465759,0.7,134.01,133.98,9.78882769]
[1764002466146,7.7284767,133.99,133.95,0.2]
[1764002466350,7.7284767,133.97,133.95,0.2]
[1764002466766,7.7284767,134.0,133.95,8.5984767]
[1764002466968,7.7284767,134.03,133.98,7.7284767]
[1764002467173,16.308864,134.05,133.97,7.7284767]
[1764002467174,8.4284767,134.02,133.97,7.7284767]
[1764002467562,8.4284767,134.02,133.97,8.3984767]
[1764002468287,7.7284767,134.03,133.99,9.78882769]
[1764002468589,3.36,134.06,134.03,9.78882769]
[1764002468883,4.06,134.11,134.05,7.7284767]
[1764002469061,11.7884767,134.11,134.06,7.7284767]
[1764002469264,11.7884767,134.11,134.04,0.67]
[1764002469265,7.7284767,134.1,134.05,17.51730439]
[1764002469657,8.4284767,134.1,134.05,17.51730439]
[1764002469958,8.4284767,134.1,134.06,7.7284767]
[1764002470483,3.36,134.11,134.07,17.51730439]
[1764002470680,7.7284767,134.16,134.05,0.14216157]
[1764002470681,0.7,134.1,134.05,0.14216157]
[1764002470981,8.4284767,134.1,134.05,17.65946596]
[1764002471165,8.4284767,134.1,134.05,21.01946596]
[1764002471357,0.7,134.09,134.05,21.01946596]
[1764002471771,0.7,134.09,134.06,7.45934656]
[1764002472078,7.7284767,134.1,134.06,7.45934656]
[1764002472378,8.4284767,134.11,134.07,9.78882769]
[1764002472980,8.4284767,134.1,134.07,9.78882769]
[1764002473272,16.308864,134.13,134.07,9.78882769]
[1764002473465,7.7284767,134.11,134.07,9.78882769]
[1764002473659,11.0884767,134.16,134.1,17.51730439]
[1764002473660,7.7284767,134.15,134.1,17.51730439]
[1764002473864,7.7284767,134.14,134.1,9.78882769]
[1764002474059,7.7284767,134.13,134.1,9.78882769]
[1764002474261,8.4284767,134.13,134.1,9.78882769]
[1764002474556,0.7,134.13,134.1,9.78882769]
[1764002475276,7.7284767,134.11,134.06,9.78882769]
[1764002475482,7.7284767,134.11,134.06,17.51730439]
[1764002475781,8.4284767,134.11,134.06,24.97658658]
[1764002475962,0.7,134.11,134.06,24.97658658]
[1764002476273,7.7284767,134.13,134.08,7.7284767]
[1764002476475,7.7284767,134.13,134.09,7.7284767]
[1764002476660,7.7284767,134.13,134.08,0.67]
[1764002476661,8.4284767,134.12,134.07,9.78882769]
[1764002476865,0.7,134.12,134.07,17.51730439]
[1764002477060,0.7,134.12,134.07,18.18730439]
[1764002477267,7.7284767,134.13,134.08,8.54063827]
[1764002477786,8.4284767,134.13,134.08,8.54063827]
[1764002478166,8.4284767,134.13,134.09,7.7284767]
[1764002478363,7.7284767,134.12,134.08,9.78882769]
[1764002478566,7.7284767,134.12,134.07,7.7284767]
[1764002478567,7.7284767,134.11,134.07,13.29098926]
[1764002478769,7.7284767,134.11,134.07,9.78882769]
[1764002478770,7.7284767,134.1,134.07,9.78882769]
[1764002478964,7.7284767,134.09,134.07,9.78882769]
[1764002479161,7.7284767,134.09,134.04,9.78882769]
[1764002479162,7.7284767,134.08,134.04,9.78882769]
[1764002479361,8.4284767,134.08,134.04,17.51730439]
[1764002479570,0.7,134.08,134.04,17.51730439]
[1764002479977,7.7284767,134.1,134.06,9.78882769]
[1764002480166,11.0884767,134.16,134.06,9.78882769]
[1764002480167,7.7284767,134.12,134.06,17.91809727]
[1764002480361,7.7284767,134.11,134.06,24.97657397]
[1764002480777,8.4284767,134.11,134.06,24.97657397]
[1764002481160,8.4284767,134.11,134.06,25.64658345]
[1764002481361,16.308864,134.13,134.08,9.78882769]
[1764002481590,8.4284767,134.13,134.08,17.51730439]
[1764002481767,0.7,134.12,134.08,16.82660507]
[1764002482195,7.7284767,134.14,134.09,15.85615437]
[1764002482567,8.4184767,134.14,134.09,15.85615437]
[1764002482784,0.69,134.13,134.09,7.7284767]
[1764002483096,8.4184767,134.13,134.08,24.28477282]
[1764002483259,16.308864,134.16,134.08,24.28477282]
[1764002483462,16.308864,134.16,134.1,7.7284767]
[1764002483463,7.7284767,134.15,134.1,7.7284767]
[1764002483659,16.998864,134.16,134.11,7.7284767]
[1764002483897,7.7284767,134.15,134.11,7.7284767]
[1764002484189,8.4184767,134.15,134.1,24.97416997]
[1764002484772,8.4184767,134.14,134.09,0.14216157]
[1764002485107,7.7284767,134.16,134.11,7.7284767]
[1764002485392,8.4184767,134.16,134.11,7.7284767]
[1764002485597,0.69,134.15,134.11,7.7284767]
[1764002485803,3.36,134.17,134.12,8.4484767]
[1764002485973,3.36,134.17,134.13,7.7284767]
[1764002486164,4.05,134.17,134.13,7.7284767]
[1764002486366,0.69,134.17,134.13,15.18367379]
[1764002486977,0.69,134.17,134.13,7.7284767]
[1764002487292,0.69,134.17,134.13,15.18389218]
[1764002487505,7.7284767,134.14,134.1,9.78882769]
[1764002487689,7.7284767,134.14,134.1,17.2458018]
[1764002488192,7.7284767,134.15,134.11,10.50882769]
[1764002488397,7.7284767,134.15,134.11,25.69372565]
[1764002488573,7.7284767,134.16,134.12,0.72]
[1764002488770,8.4184767,134.17,134.12,8.4484767]
[1764002488996,0.69,134.17,134.12,8.4484767]
[1764002489179,8.4184767,134.17,134.12,8.4484767]
[1764002489680,7.7284767,134.18,134.13,8.4484767]
[1764002489877,0.69,134.17,134.13,8.4484767]
[1764002490073,8.4184767,134.17,134.12,7.7284767]
[1764002490598,8.4184767,134.17,134.12,15.90426796]
[1764002490780,7.7284767,134.16,134.13,9.78882769]
[1764002491697,8.4184767,134.17,134.13,9.78882769]
[1764002491869,8.4184767,134.17,134.13,17.51730439]
[1764002492377,8.4184767,134.17,134.13,9.78882769]
[1764002492577,8.4184767,134.17,134.1,19.79102557]
[1764002492578,7.7284767,134.14,134.1,9.78882769]
[1764002492977,0.69,134.13,134.1,9.78882769]
[1764002493574,0.69,134.13,134.07,26.82576564]
[1764002493798,7.7284767,134.12,134.07,15.18726688]
[1764002493982,7.7284767,134.11,134.06,15.18758953]
[1764002494402,0.69,134.1,134.07,9.78882769]
[1764002495899,0.69,134.1,134.07,24.97599488]
[1764002496988,0.69,134.1,134.07,9.78882769]
[1764002497188,8.4184767,134.1,134.05,0.14216157]
[1764002497377,8.4184767,134.1,134.06,9.78882769]
[1764002497578,8.4184767,134.09,134.06,9.78882769]
[1764002497988,0.69,134.08,134.06,9.78882769]
[1764002498286,7.7284767,134.1,134.06,9.78882769]
[1764002498494,0.69,134.09,134.06,9.78882769]
[1764002498800,0.69,134.09,134.06,17.51730439]
[1764002499305,0.69,134.09,134.06,9.78882769]
[1764002500181,8.4184767,134.11,134.06,17.51730439]
[1764002500384,7.7284767,134.1,134.06,9.78882769]
[1764002500602,8.4184767,134.1,134.06,9.78882769]
[1764002500908,8.4184767,134.1,134.06,17.51730439]
[1764002501815,8.4184767,134.09,134.06,9.78882769]
[1764002502111,0.69,134.09,134.06,9.78882769]
[1764002502684,8.4184767,134.1,134.06,24.97661376]
[1764002503601,8.4184767,134.1,134.06,17.51730439]
[1764002503800,3.34,134.14,134.04,7.7284767]
[1764002503801,8.4184767,134.09,134.04,7.7284767]
[1764002504007,7.7284767,134.08,134.03,7.7284767]
[1764002504186,8.4184767,134.08,134.03,7.7284767]
[1764002504514,0.69,134.07,134.03,7.7284767]
[1764002504683,7.7284767,134.05,134.01,9.78882769]
[1764002505092,0.69,134.04,134.0,7.7284767]
[1764002505291,0.69,134.09,134.04,0.14216157]
[1764002505486,8.4184767,134.09,134.04,7.7284767]
[1764002505810,7.7284767,134.06,134.01,20.85730439]
[1764002506191,0.69,134.05,134.01,20.85730439]
[1764002506392,0.69,134.05,134.02,7.7284767]
[1764002506601,8.4184767,134.07,134.02,7.7284767]
[1764002506799,0.69,134.06,134.02,7.7284767]
[1764002506997,0.69,134.06,134.03,7.7284767]
[1764002507514,0.69,134.06,134.02,7.7284767]
[1764002507716,8.4184767,134.06,134.02,7.7284767]
[1764002508129,8.4384767,134.06,134.02,7.7284767]
[1764002508414,0.71,134.05,134.02,7.7284767]
[1764002508601,0.71,134.06,134.03,7.7284767]
[1764002509298,8.4384767,134.06,134.01,17.25055541]
[1764002509504,7.7284767,134.05,134.0,7.7284767]
[1764002509704,8.4384767,134.05,134.0,7.7284767]